fUSD/lending_fUSD_20240416
["ID","MTS","AMOUNT","RATE_DAILY","PERIOD"]
[322788892,1713293432600,-199.86598724,0.0001782,2]
[322788893,1713293432612,-541.572,0.0001782,2]
[322788894,1713293432621,-4668.57832667,0.0001788,2]
[322788895,1713293432630,-3149.03835187,0.0001788,2]
[322788896,1713293432641,-1372.10854233,0.00017883,2]
[322788897,1713293432650,-2279.5534,0.00017892,2]
[322788898,1713293432659,-3453.6568,0.00017897,2]
[322788899,1713293432668,-824.3253,0.00017897,2]
[322788900,1713293432678,-310.0,0.00017897,2]
[322788901,1713293432688,-25165.8661,0.00017899,2]
[322788902,1713293432697,-500.0,0.00017899,2]
[322788903,1713293432707,-11353.899,0.00017899,2]
[322788904,1713293432717,-154.75549264,0.00017899,2]
[322788905,1713293432726,-3396.10208361,0.00017899,2]
[322788906,1713293432735,-186.37232637,0.00017899,2]
[322788907,1713293432744,-276.71287767,0.00017899,2]
[322788908,1713293432753,-172.23989272,0.00017899,2]
[322788909,1713293432763,-186.37232635,0.00017899,2]
[322788910,1713293432773,-186.37232635,0.000179,2]
[322788911,1713293432784,-186.37232635,0.000179,2]
[322788912,1713293432793,-2460.90763067,0.000179,2]
[322788913,1713293432802,-286.68828182,0.000179,2]
[322788914,1713293432811,-557.81347028,0.000179,2]
[322788915,1713293432821,-1000.0,0.0001791,2]
[322788916,1713293432830,-1000.0,0.0001791,2]
[322788917,1713293432840,-1000.0,0.0001791,2]
[322788918,1713293432849,-1000.0,0.0001791,2]
[322788919,1713293432858,-1000.0,0.0001791,2]
[322788920,1713293432867,-1000.0,0.0001791,2]
[322788921,1713293432876,-1000.0,0.0001791,2]
[322788922,1713293432886,-1000.0,0.0001791,2]
[322788923,1713293432895,-1000.0,0.0001791,2]
[322788924,1713293432904,-1000.0,0.0001791,2]
[322788925,1713293432913,-1000.0,0.0001791,2]
[322788926,1713293432922,-1000.0,0.0001791,2]
[322788927,1713293432932,-1000.0,0.0001791,2]
[322788928,1713293432941,-1000.0,0.0001791,2]
[322788929,1713293432950,-1000.0,0.0001791,2]
[322788930,1713293432959,-1000.0,0.0001791,2]
[322788931,1713293432968,-1000.0,0.0001791,2]
[322788932,1713293432978,-1000.0,0.0001791,2]
[322788933,1713293432987,-1000.0,0.0001791,2]
[322788934,1713293432996,-1000.0,0.0001791,2]
[322788935,1713293433005,-1000.0,0.0001791,2]
[322788936,1713293433016,-1000.0,0.0001791,2]
[322788937,1713293433025,-1000.0,0.0001791,2]
[322788938,1713293433038,-1000.0,0.0001791,2]
[322788939,1713293433047,-599.3655,0.0001791,2]
[322788940,1713293433056,-500.0,0.0001791,2]
[322788941,1713293433065,-500.0,0.0001791,2]
[322788942,1713293433076,-500.0,0.0001791,2]
[322788943,1713293433085,-500.0,0.0001791,2]
[322788944,1713293433094,-501.0398,0.0001791,2]
[322788945,1713293433103,-8719.2155871,0.00017991,2]
[322788946,1713293433113,-93342.0518333,0.00017991,2]
[322788947,1713293433122,-15154.23,0.00017991,2]
[322788948,1713293433134,-5781.7117296,0.00017991,2]
[322788949,1713293433143,-1232.10824713,0.00017997,2]
[322788950,1713293433152,-201.9156312,0.00017997,2]
[322788951,1713293433161,-292.7266712,0.00017997,2]
[322788952,1713293433170,-244.83254232,0.00017997,2]
[322788953,1713293433179,-12059.98043502,0.00017997,2]
[322788954,1713293433189,-2175.08703921,0.00017997,2]
[322788955,1713293433198,-21819.73437446,0.00017997,2]
[322788956,1713293433207,-213.75326558,0.00017997,2]
[322788957,1713293433216,-404.87415105,0.00017997,2]
[322788958,1713293433226,-267.13908293,0.00017997,2]
[322788959,1713293433235,-155.0,0.00017997,2]
[322788960,1713293433244,-526.09688753,0.00017997,2]
[322788961,1713293433254,-155.0,0.00017997,2]
[322788962,1713293433262,-155.0,0.00017997,2]
[322788963,1713293433272,-155.0,0.00017997,2]
[322788964,1713293433286,-157.04510012,0.00017997,2]
[322788965,1713293433294,-155.0,0.00017997,2]
[322788966,1713293433304,-155.0,0.00017997,2]
[322788967,1713293433313,-207.5347557,0.00017997,2]
[322788968,1713293433322,-155.0,0.00017997,2]
[322788969,1713293433332,-155.07615994,0.00017997,2]
[322788970,1713293433341,-2301.47692465,0.00017997,2]
[322788971,1713293433350,-1781.91306782,0.00017997,2]
[322788972,1713293433359,-155.0,0.00017997,2]
[322788973,1713293433369,-155.0,0.00017997,2]
[322788974,1713293433378,-316.62824532,0.00017997,2]
[322788975,1713293433386,-155.0,0.00017997,2]
[322788976,1713293433395,-223.65370089,0.00017997,2]
[322788977,1713293433404,-2382.03283447,0.00017997,2]
[322788978,1713293433414,-341.21797932,0.00017997,2]
[322788979,1713293433423,-167.14197404,0.00017998,2]
[322788980,1713293433432,-35196.77114484,0.00017998,2]
[322788981,1713293433442,-862.0,0.00017999,2]
[322788982,1713293433452,-541971.93568335,0.00017999,2]
[322788983,1713293433466,-213929.30412985,0.00017999,2]
[322788984,1713293433486,-682.63651206,0.00017999,2]
[322788985,1713293433497,-342.46857,0.00017999,2]
[322788986,1713293433508,-226538.43745728,0.00017999,2]
[322788987,1713293433518,-206.98170683,0.00017999,2]
[322788988,1713293433532,-5838.21584113,0.00017999,2]
[322788989,1713293433541,-317.34356756,0.00017999,2]
[322788990,1713293433550,-500.0,0.00018,2]
[322788991,1713293433559,-4779.17439742,0.00018,2]
[322789024,1713293437607,-621.34527472,0.00015508,2]
[322789026,1713293437617,-408.04988804,0.00015509,2]
[322789028,1713293437626,-3170.01198954,0.00017908,2]
[322789034,1713293437846,-414.256001,0.00017908,2]
[322789035,1713293437857,-1057.59557018,0.00017908,2]
[322789037,1713293439625,-460.63094984,0.00017908,2]
[322789038,1713293440094,-21894.76653897,0.00017908,2]
[322789039,1713293440105,-732.0,0.00017999,2]
[322789040,1713293440114,-294.23367137,0.00017999,2]
[322789041,1713293440124,-1432.52953725,0.00017999,2]
[322789042,1713293440134,-304873.6061915,0.00018,2]
[322789043,1713293440595,-20450.99749865,0.00018,2]
[322789044,1713293440609,-458.68758806,0.00018,2]
[322789045,1713293440623,-616.39069934,0.00018,2]
[322789046,1713293440637,-525.46680926,0.00018,2]
[322789047,1713293440651,-10931.55257449,0.00018,2]
[322789048,1713293440666,-1147.94373023,0.00018,2]
[322789049,1713293440678,-16768.98760738,0.00018,2]
[322789050,1713293440689,-666.14594998,0.00018,2]
[322789063,1713293442748,-14751.59364953,0.00018,2]
[322789064,1713293442831,-1425.95166666,0.00018,2]
[322789065,1713293442896,-1458.78306831,0.00018,2]
[322789066,1713293442909,-3149.22220706,0.00018,2]
[322789067,1713293443021,-1729.83446387,0.00018,2]
[322789078,1713293445783,-164.23551209,0.00017998,2]
[322789079,1713293445796,-780.07398963,0.00017998,2]
[322789080,1713293445805,-1121.75441828,0.00017998,2]
[322789081,1713293445860,-176.49239314,0.00017998,2]
[322789082,1713293445870,-1241.03910676,0.00017998,2]
[322789083,1713293445878,-1127.51071652,0.00017998,2]
[322789084,1713293445887,-683.02854702,0.00017998,2]
[322789085,1713293445896,-709.23892716,0.00017998,2]
[322789086,1713293445905,-1222.95023345,0.00017998,2]
[322789087,1713293445914,-262.04611225,0.00017999,2]
[322789088,1713293445923,-786.43640324,0.00017999,2]
[322789089,1713293445933,-1745.83354019,0.00017999,2]
[322789090,1713293445942,-3161.04385905,0.00017999,2]
[322789091,1713293445951,-3377.35550732,0.00017999,2]
[322789092,1713293445960,-658.0,0.00018,2]
[322789093,1713293445969,-215095.42950738,0.00018,2]
[322789094,1713293445984,-869.38816599,0.00018,2]
[322789095,1713293515977,1128.58167992,0.0001539,2]
[322789096,1713293527665,183.99,0.0001376,2]
[322789097,1713293612845,548.63288177,0.00032239,120]
[322789098,1713293654892,2486.27078095,0.00022,12]
[322789099,1713293772282,402.36,0.00014344,2]
[322789100,1713293817351,180.58,0.00013699,2]
[322789101,1713294003528,150.0,0.00013699,2]
[322789102,1713294003789,150.0,0.00013699,2]
[322789103,1713294004011,150.0,0.00013699,2]
[322789104,1713294004242,150.0,0.00013699,2]
[322789105,1713294004548,241.41790534,0.00013699,2]
[322789106,1713294065490,180.34,0.00012872,2]
[322789107,1713294180147,2538.98077247,0.00012,2]
[322789108,1713294196067,2332.66223027,0.00012,2]
[322789109,1713294357816,-1434.86,0.00016006,2]
[322789110,1713294357838,-1059.74600206,0.00016022,2]
[322789111,1713294357860,-325.39312351,0.00016023,2]
[322789112,1713294357882,-180.00087443,0.00016023,2]
[322789113,1713294358495,-800.0,0.00015994,2]
[322789114,1713294358521,-385.82293825,0.00016005,2]
[322789115,1713294358542,-1814.17706175,0.00016023,2]
[322789116,1713294361536,308.82011671,0.00032197,30]
[322789117,1713294363029,-240.0,0.00016005,2]
[322789118,1713294424482,218.83,0.00013699,2]
[322789119,1713294446325,440.99,0.00014161,2]
[322789120,1713294552344,169.99,0.00012807,2]
[322789128,1713294631740,-402.0,0.00015672,2]
[322789133,1713294631798,-307.23892716,0.00015672,2]
[322789134,1713294631808,-219.94819757,0.00015672,2]
[322789135,1713294631823,-105.44492594,0.00015672,2]
[322789136,1713294631832,-177.51,0.00015673,2]
[322789137,1713294631841,-355.54089858,0.00015693,2]
[322789138,1713294631867,-30.28203967,0.00015693,2]
[322789139,1713294631879,-1241.03910676,0.00015693,2]
[322789140,1713294631889,-150.0,0.00015694,2]
[322789141,1713294631898,-500.0,0.00015701,2]
[322789142,1713294631907,-522.94593933,0.00015711,2]
[322789143,1713294631918,-477.05406067,0.00015711,2]
[322789144,1713294631927,-4432.78429383,0.00015712,2]
[322789145,1713294631938,-2332.32978955,0.00015712,2]
[322789146,1713294631949,-713.07366266,0.00015712,2]
[322789147,1713294631960,-893.59727248,0.00015712,2]
[322789148,1713294632062,-1.85272672,0.00015712,2]
[322789149,1713294632074,-809.73333754,0.00015712,2]
[322789150,1713294632086,-580.86539022,0.00015712,2]
[322789151,1713294632106,-14135.763527,0.00015712,2]
[322789152,1713294632115,-155.54815529,0.00015894,2]
[322789153,1713294632127,-4318.78645014,0.00015994,2]
[322789155,1713294632136,-575.15646557,0.00016003,2]
[322789157,1713294632145,-200.0,0.00016029,2]
[322789158,1713294632154,-768.29,0.00016033,2]
[322789159,1713294632163,-768.29,0.00016037,2]
[322789160,1713294632173,-768.29,0.00016041,2]
[322789161,1713294632183,-499.99,0.00016041,2]
[322789162,1713294632193,-768.29,0.00016045,2]
[322789163,1713294632204,-768.29,0.00016049,2]
[322789164,1713294632214,-768.29,0.00016054,2]
[322789165,1713294632225,-1097.07,0.00016055,2]
[322789166,1713294632236,-150.0,0.00016056,2]
[322789167,1713294632245,-500.0,0.00016057,2]
[322789168,1713294632255,-768.29,0.00016058,2]
[322789169,1713294632266,-259.63,0.00016061,2]
[322789170,1713294632276,-768.29,0.00016062,2]
[322789171,1713294632287,-768.29,0.00016066,2]
[322789172,1713294632296,-768.29,0.00016071,2]
[322789173,1713294632306,-768.29,0.00016075,2]
[322789174,1713294632316,-1852.42,0.00016075,2]
[322789175,1713294632325,-768.29,0.00016079,2]
[322789176,1713294632335,-3091.6,0.00016081,2]
[322789177,1713294632345,-768.29,0.00016083,2]
[322789178,1713294632355,-768.29,0.00016087,2]
[322789179,1713294632364,-768.29,0.00016092,2]
[322789180,1713294632376,-250.0,0.00016093,2]
[322789181,1713294632385,-768.29,0.00016096,2]
[322789182,1713294632394,-768.29,0.000161,2]
[322789183,1713294632404,-768.29,0.00016104,2]
[322789184,1713294632413,-768.29,0.00016109,2]
[322789185,1713294632423,-768.29,0.00016113,2]
[322789186,1713294632433,-167.93,0.00016141,2]
[322789187,1713294632442,-340.74,0.00016225,2]
[322789188,1713294632456,-340.74,0.00016269,2]
[322789189,1713294632467,-200.01,0.00016292,2]
[322789190,1713294632477,-200.0,0.00016299,2]
[322789191,1713294632487,-340.74,0.00016314,2]
[322789192,1713294632497,-3406.17756238,0.00016343,2]
[322789193,1713294632507,-2353.28763213,0.00016353,2]
[322789194,1713294632517,-786.43640324,0.00016356,2]
[322789195,1713294632526,-340.74,0.00016358,2]
[322789196,1713294632536,-340.74,0.00016403,2]
[322789197,1713294632546,-440.99,0.00016425,2]
[322789198,1713294632556,-728.44,0.00016438,2]
[322789199,1713294632566,-340.74,0.00016447,2]
[322789200,1713294632575,-340.74,0.00016492,2]
[322789201,1713294632586,-1222.95023345,0.00016535,2]
[322789202,1713294632596,-340.74,0.00016536,2]
[322789203,1713294632606,-176.39,0.00016564,2]
[322789204,1713294632616,-340.74,0.00016581,2]
[322789205,1713294632627,-340.74,0.00016625,2]
[322789206,1713294632637,-340.74,0.0001667,2]
[322789207,1713294632646,-6682.99,0.00016712,2]
[322789208,1713294632656,-340.74,0.00016714,2]
[322789209,1713294632666,-340.74,0.00016759,2]
[322789210,1713294632675,-340.74,0.00016803,2]
[322789211,1713294632685,-340.74,0.00016848,2]
[322789212,1713294632695,-340.74,0.00016892,2]
[322789213,1713294632704,-340.74,0.00016937,2]
[322789214,1713294632714,-340.74,0.00016981,2]
[322789215,1713294632724,-300.0,0.00016998,2]
[322789216,1713294632735,-340.74,0.00017026,2]
[322789217,1713294632745,-340.74,0.0001707,2]
[322789218,1713294632756,-1261.54841761,0.00017098,2]
[322789219,1713294632766,-868.77,0.00017148,2]
[322789220,1713294632775,-868.77,0.00017152,2]
[322789221,1713294632785,-868.77,0.00017157,2]
[322789222,1713294632794,-868.77,0.00017161,2]
[322789223,1713294632806,-868.77,0.00017166,2]
[322789224,1713294632819,-868.77,0.0001717,2]
[322789225,1713294632831,-868.77,0.00017175,2]
[322789226,1713294632840,-868.77,0.00017179,2]
[322789227,1713294632850,-868.77,0.00017184,2]
[322789228,1713294632862,-868.77,0.00017188,2]
[322789229,1713294632871,-868.77,0.00017193,2]
[322789230,1713294632882,-868.77,0.00017197,2]
[322789231,1713294632893,-868.77,0.00017202,2]
[322789232,1713294632904,-868.77,0.00017206,2]
[322789233,1713294632914,-868.77,0.00017211,2]
[322789234,1713294632924,-868.77,0.00017215,2]
[322789235,1713294632934,-868.77,0.0001722,2]
[322789236,1713294632945,-868.77,0.00017225,2]
[322789237,1713294632955,-868.77,0.00017229,2]
[322789238,1713294632965,-868.77,0.00017234,2]
[322789239,1713294632975,-229.001294,0.00017534,2]
[322789240,1713294632985,-2394.0,0.000176,2]
[322789241,1713294632995,-162.0,0.00017661,2]
[322789242,1713294633005,-451.31,0.0001782,2]
[322789243,1713294633015,-200.0,0.00017855,2]
[322789244,1713294633025,-1000.0,0.00017855,2]
[322789245,1713294633035,-500.0,0.00017855,2]
[322789246,1713294633045,-200.0,0.00017856,2]
[322789247,1713294633055,-200.0,0.00017856,2]
[322789248,1713294633064,-1000.0,0.00017856,2]
[322789249,1713294633074,-500.0,0.00017856,2]
[322789250,1713294633084,-200.0,0.00017856,2]
[322789251,1713294633094,-680.2897,0.00017891,2]
[322789252,1713294633103,-3051.27350086,0.00017894,2]
[322789253,1713294633113,-4201.72049403,0.00017896,2]
[322789254,1713294633124,-419.7168403,0.00017899,2]
[322789255,1713294633133,-198.02966088,0.000179,2]
[322789256,1713294633143,-1000.0,0.000179,2]
[322789257,1713294633152,-3740.15352999,0.000179,2]
[322789258,1713294633162,-371.87564686,0.000179,2]
[322789259,1713294633172,-316.0793063,0.000179,2]
[322789260,1713294633181,-488.13953188,0.000179,2]
[322789261,1713294633191,-10000.0,0.000179,2]
[322789262,1713294633201,-1640.6050871,0.000179,2]
[322789263,1713294633211,-191.12552122,0.000179,2]
[322789264,1713294633221,-293.6462943,0.00017989,2]
[322789265,1713294633231,-2204.0,0.0001799,2]
[322789266,1713294633241,-800.0,0.00017994,2]
[322789267,1713294633251,-4713.55000001,0.00017994,2]
[322789268,1713294633261,-40702.8908432,0.00017995,2]
[322789269,1713294633271,-202.07075132,0.00017996,2]
[322789270,1713294633281,-362.75793443,0.00017997,2]
[322789271,1713294633292,-671.07903694,0.00017997,2]
[322789272,1713294633301,-164.29423485,0.00017997,2]
[322789273,1713294633311,-223.65370089,0.00017997,2]
[322789274,1713294633321,-7821.99,0.00017997,2]
[322789275,1713294633331,-376.21388074,0.00017998,2]
[322789276,1713294633342,-158.36681876,0.00017998,2]
[322789277,1713294633352,-1969.16848134,0.00017998,2]
[322789278,1713294633363,-449.21785999,0.00017998,2]
[322789279,1713294633374,-407.76403078,0.00017998,2]
[322789280,1713294633384,-1126.0766981,0.00017998,2]
[322789281,1713294633393,-261.74893096,0.00017998,2]
[322789282,1713294633403,-1296.90311868,0.00017998,2]
[322789283,1713294633413,-23128.82828763,0.00017998,2]
[322789284,1713294633453,-12082.10210135,0.00017998,2]
[322789285,1713294633464,-3717.89785865,0.00017998,2]
[322789286,1713294633476,-10011.1249,0.00017998,2]
[322789287,1713294633488,-4000.0,0.00017998,2]
[322789288,1713294633500,-4160.23152884,0.00017998,2]
[322789289,1713294633512,-3308.305,0.00017998,2]
[322789290,1713294633523,-593.41505923,0.00017998,2]
[322789291,1713294633535,-282.835599,0.00017998,2]
[322789292,1713294634885,-621.34527472,0.00015671,2]
[322789298,1713294637895,-195.15351684,0.000179,3]
[322789299,1713294637905,-5500.59028206,0.00017998,2]
[322789300,1713294637949,-16191.4999979,0.00017998,2]
[322789301,1713294638005,-339.86953,0.00017998,2]
[322789302,1713294638016,-838.75528515,0.00017998,2]
[322789303,1713294638027,-289.72341223,0.00017998,2]
[322789304,1713294638111,-3319.01570001,0.00017998,2]
[322789307,1713294639966,-1828.75910798,0.00017998,2]
[322789308,1713294640570,-433.35879072,0.00017998,2]
[322789309,1713294640582,-96772.18347305,0.00017998,2]
[322789310,1713294640595,-377.833,0.00017998,2]
[322789311,1713294640607,-380.9492719,0.00017998,2]
[322789312,1713294640617,-1219.0507281,0.00017998,2]
[322789313,1713294640630,-960.0,0.00017998,2]
[322789314,1713294640642,-21143.21153372,0.00017998,2]
[322789315,1713294640652,-587.0,0.00017999,2]
[322789316,1713294640662,-1242.31819211,0.00017999,2]
[322789317,1713294640672,-157.70892513,0.00017999,2]
[322789318,1713294640682,-1784.74005242,0.00017999,2]
[322789319,1713294640692,-8890.8189773,0.00017999,2]
[322789320,1713294640702,-150.01,0.00017999,2]
[322789321,1713294640713,-505.90755723,0.00017999,2]
[322789322,1713294640723,-16102.28030448,0.00017999,2]
[322789323,1713294640734,-30263.1473479,0.00017999,2]
[322789324,1713294640746,-568.3767186,0.00017999,2]
[322789325,1713294640762,-307.7,0.00017999,2]
[322789326,1713294640773,-5061.64822947,0.00017999,2]
[322789327,1713294640785,-435.67082283,0.00017999,2]
[322789361,1713294643165,-4349.01500908,0.00017999,2]
[322789362,1713294643176,-866.67264469,0.00017999,2]
[322789363,1713294643187,-388.33599996,0.00017999,2]
[322789382,1713294643887,-632.14452552,0.00017999,2]
[322789391,1713294645930,-519.60512964,0.00017998,2]
[322789392,1713294645941,-474.84673277,0.00017998,2]
[322789393,1713294645951,-694.0,0.00017999,2]
[322789394,1713294645961,-111311.93636256,0.00017999,2]
[322789395,1713294645972,-6315.8064,0.00017999,2]
[322789396,1713294645987,-607.97134023,0.00017999,2]
[322789397,1713294646002,-729.0,0.00017999,2]
[322789398,1713294646014,-15715.90833436,0.00017999,2]
[322789399,1713294646026,-404.4192757,0.00017999,2]
[322789400,1713294646043,-12357.70546831,0.00017999,2]
[322789401,1713294646054,-667.0664,0.00017999,2]
[322789402,1713294646096,-762.58582215,0.00017999,2]
[322789403,1713294646107,-2362.176004,0.00017999,2]
[322789404,1713294646118,-4836.09833168,0.00017999,2]
[322789405,1713294646150,-680.49,0.00017999,2]
[322789406,1713294646161,-3067.99280787,0.00017999,2]
[322789407,1713294646206,-3642.85020046,0.00017999,2]
[322789408,1713294646218,-2000.81106848,0.00017999,2]
[322789409,1713294646230,-442.00189353,0.00017999,2]
[322789410,1713294646261,-1850.25890307,0.00017999,2]
[322789412,1713294704729,-2000.0,0.00017172,2]
[322789413,1713294705852,-2000.0,0.00017172,2]
[322789414,1713294706376,-922.63,0.00017172,2]
[322789415,1713294706396,-464.99858771,0.0001747,2]
[322789416,1713294706416,-250.0,0.00017471,2]
[322789417,1713294706438,-362.37141229,0.00017492,2]
[322789418,1713294706911,-2000.0,0.00017492,2]
[322789419,1713294707772,-2000.0,0.00017492,2]
[322789420,1713294712098,500.0,0.00032198,30]
[322789421,1713294712418,500.0,0.00032198,30]
[322789422,1713294712696,500.0,0.00032198,30]
[322789423,1713294712982,500.0,0.00032198,30]
[322789424,1713294713284,500.0,0.00032198,30]
[322789425,1713294713570,500.0,0.00032198,30]
[322789426,1713294714178,500.0,0.00032198,30]
[322789427,1713294714464,500.0,0.00032198,30]
[322789428,1713294714884,500.0,0.00032198,30]
[322789429,1713294715131,500.0,0.00032198,30]
[322789430,1713294715404,500.0,0.00032198,30]
[322789431,1713294715655,500.0,0.00032198,30]
[322789432,1713294715911,500.0,0.00032198,30]
[322789433,1713294716168,500.0,0.00032198,30]
[322789434,1713294716763,347.70056309,0.00032198,30]
[322789435,1713294738495,1378.65472528,0.00013118,2]
[322789436,1713294738515,367.80348013,0.00013118,2]
[322789437,1713294756460,1632.19651987,0.00013117,2]
[322789438,1713294756483,114.26168554,0.00013117,2]
[322789439,1713294774449,1746.45820541,0.00013116,2]
[322789440,1713294787290,400.0,0.00025259,120]
[322789441,1713294794455,139.28010905,0.00013116,2]
[322789442,1713294794475,451.50871672,0.00013116,2]
[322789443,1713294797332,365.48582582,0.00013117,2]
[322789444,1713294798112,500.0,0.00032198,30]
[322789445,1713294798387,500.0,0.00032198,30]
[322789446,1713294798669,500.0,0.00032198,30]
[322789447,1713294798931,500.0,0.00032198,30]
[322789448,1713294799209,500.0,0.00032198,30]
[322789449,1713294799608,500.0,0.00032198,30]
[322789450,1713294799907,500.0,0.00032198,30]
[322789451,1713294800207,500.0,0.00032198,30]
[322789452,1713294800687,268.25789537,0.00032198,30]
[322789453,1713294801280,323.45830688,0.00013117,2]
[322789454,1713294813271,194.27409269,0.00013117,2]
[322789455,1713294813345,209.25623936,0.00013117,2]
[322789456,1713294821638,212.98609324,0.0002739,30]
[322789457,1713294831348,500.0,0.00032198,30]
[322789458,1713294874122,563.12154995,0.00032217,30]
[322789459,1713295012350,456.01681853,0.0001444,2]
[322789460,1713295012371,142.30318147,0.0001444,2]
[322789461,1713295013572,330.11930108,0.00032217,30]
[322789462,1713295054516,1426.7046,0.00015639,2]
[322789463,1713295103470,323.65817163,0.00015639,2]
[322789464,1713295114675,500.0,0.00032217,30]
[322789465,1713295114947,500.0,0.00032217,30]
[322789466,1713295115218,456.79004608,0.00032217,30]
[322789467,1713295117463,107.3340469,0.00015639,2]
[322789468,1713295117485,354.80413607,0.00015639,2]
[322789469,1713295341430,1645.19586393,0.00015639,2]
[322789470,1713295341452,2000.0,0.00015639,2]
[322789471,1713295341475,2000.0,0.00015639,2]
[322789472,1713295341497,2000.0,0.00015639,2]
[322789473,1713295341520,2000.0,0.00015639,2]
[322789474,1713295341540,2000.0,0.00015639,2]
[322789475,1713295341561,1349.59085369,0.00015639,2]
[322789476,1713295365211,650.40914631,0.00015639,2]
[322789477,1713295365232,2000.0,0.00015639,2]
[322789478,1713295365253,2000.0,0.00015639,2]
[322789479,1713295365275,2000.0,0.00015639,2]
[322789480,1713295365296,2000.0,0.00015639,2]
[322789481,1713295365317,2000.0,0.00015639,2]
[322789482,1713295365756,2000.0,0.00015639,2]
[322789483,1713295365779,2000.0,0.00015639,2]
[322789484,1713295365802,1284.4243655,0.00015639,2]
[322789488,1713295415380,715.5756345,0.00015639,2]
[322789489,1713295415403,2000.0,0.00015639,2]
[322789490,1713295415424,2000.0,0.00015639,2]
[322789491,1713295415445,2000.0,0.00015639,2]
[322789492,1713295415468,1712.51193981,0.00015639,2]
[322789493,1713295454220,326.14532447,0.00032284,30]
[322789494,1713295463647,287.48806019,0.00015711,2]
[322789495,1713295463668,1890.15762232,0.00015711,2]
[322789496,1713295469769,500.0,0.00032284,30]
[322789497,1713295473392,109.84237768,0.00015639,2]
[322789498,1713295473704,1047.34912946,0.00015639,2]
[322789499,1713295477386,952.65087054,0.00015639,2]
[322789500,1713295477406,2000.0,0.00015639,2]
[322789501,1713295477426,2000.0,0.00015639,2]
[322789502,1713295477445,2000.0,0.00015639,2]
[322789503,1713295477465,1047.34912946,0.00015639,2]
[322789504,1713295482501,952.65087054,0.00015711,2]
[322789505,1713295509207,-2000.0,0.00015639,2]
[322789506,1713295509623,-2000.0,0.00015639,2]
[322789507,1713295510252,-2000.0,0.00015639,2]
[322789508,1713295510835,-2000.0,0.00015639,2]
[322789509,1713295511428,-2000.0,0.00015639,2]
[322789510,1713295514915,-1098.72480615,0.00015639,2]
[322789511,1713295514937,-155.0,0.00015709,2]
[322789512,1713295514959,-746.27519385,0.00015709,2]
[322789513,1713295515597,-253.72480615,0.00015709,2]
[322789514,1713295515619,-1746.27519385,0.0001571,2]
[322789515,1713295516221,-28.81668387,0.0001571,2]
[322789516,1713295551339,323.35440399,0.0001571,2]
[322789517,1713295555396,155.0,0.0001571,2]
[322789518,1713295556231,865.50285259,0.0001571,2]
[322789519,1713295557536,323.59908073,0.0001571,2]
[322789520,1713295563018,155.56395882,0.0001564,2]
[322789521,1713295563402,148.16302,0.0001571,2]
[322789522,1713295563424,2000.0,0.0001571,2]
[322789523,1713295563445,133.74541752,0.0001571,2]
[322789524,1713295608630,500.0,0.0001571,2]
[322789525,1713295642495,500.0,0.00032284,30]
[322789526,1713295642767,500.0,0.00032284,30]
[322789527,1713295643083,500.0,0.00032284,30]
[322789528,1713295643398,500.0,0.00032284,30]
[322789529,1713295643712,500.0,0.00032284,30]
[322789530,1713295644008,500.0,0.00032284,30]
[322789531,1713295644291,500.0,0.00032284,30]
[322789532,1713295644892,500.0,0.00032284,30]
[322789533,1713295645213,500.0,0.00032284,30]
[322789534,1713295645704,500.0,0.00032284,30]
[322789535,1713295646077,500.0,0.00032284,30]
[322789536,1713295646313,500.0,0.00032284,30]